bitfinex-derivatives/quotes_BNBF0:USTF0_20260114
["timestamp","ask_amount","ask_price","bid_price","bid_amount"]
[1768387461946,0.76243944,937.02,935.17,2.6562837]
[1768387462147,0.76243944,937.01,935.17,2.6562837]
[1768387462349,0.76243944,937.0,935.17,2.6562837]
[1768387462554,0.76243944,936.99,935.17,2.6562837]
[1768387462752,0.76243944,936.98,935.17,2.6562837]
[1768387462951,0.76243944,936.97,935.17,2.6562837]
[1768387463146,0.76243944,936.96,935.17,2.6562837]
[1768387463351,0.76243944,936.95,935.17,2.6562837]
[1768387463552,0.76243944,936.94,935.17,2.6562837]
[1768387463747,0.76243944,936.93,935.17,2.6562837]
[1768387463949,0.76243944,936.92,935.17,2.6562837]
[1768387464148,0.76243944,936.91,935.17,2.6562837]
[1768387464353,0.76243944,936.9,935.17,2.6562837]
[1768387464552,0.76243944,936.89,935.17,2.6562837]
[1768387464849,0.76243944,936.88,935.17,2.6562837]
[1768387465048,0.76243944,936.87,935.17,2.6562837]
[1768387465251,0.76243944,936.86,935.17,2.6562837]
[1768387465452,0.76243944,936.85,935.17,2.6562837]
[1768387465653,0.76243944,936.84,935.17,2.6562837]
[1768387465952,0.76243944,936.83,935.17,2.6562837]
[1768387466252,0.76243944,936.82,935.17,2.6562837]
[1768387466452,0.76243944,936.81,935.17,2.6562837]
[1768387466752,0.76243944,936.8,935.17,2.6562837]
[1768387466952,0.76243944,936.79,935.17,2.6562837]
[1768387467148,0.76243944,936.78,935.17,2.6562837]
[1768387467351,0.76243944,936.77,935.17,2.6562837]
[1768387467545,0.76243944,936.76,935.17,2.6562837]
[1768387467753,0.76243944,936.75,935.17,2.6562837]
[1768387467952,0.76243944,936.74,935.17,2.6562837]
[1768387468152,0.76243944,936.73,935.17,2.6562837]
[1768387468348,0.76243944,936.72,935.17,2.6562837]
[1768387468552,0.76243944,936.71,935.17,2.6562837]
[1768387468849,0.76243944,936.7,935.17,2.6562837]
[1768387469052,0.76243944,936.69,935.17,2.6562837]
[1768387469352,0.76243944,936.68,935.17,2.6562837]
[1768387469553,0.76243944,936.67,935.17,2.6562837]
[1768387469752,0.76243944,936.66,935.17,2.6562837]
[1768387469948,0.76243944,936.65,935.17,2.6562837]
[1768387470154,0.76243944,936.64,935.17,2.6562837]
[1768387470352,0.76243944,936.63,935.17,2.6562837]
[1768387470551,0.76243944,936.62,935.17,2.6562837]
[1768387470755,0.76243944,936.61,935.17,2.6562837]
[1768387470949,0.76243944,936.6,935.17,2.6562837]
[1768387471154,0.76243944,936.59,935.17,2.6562837]
[1768387471352,0.76243944,936.58,935.17,2.6562837]
[1768387471550,0.76243944,936.57,935.17,2.6562837]
[1768387471754,0.76243944,936.56,935.17,2.6562837]
[1768387471956,0.76243944,936.55,935.17,2.6562837]
[1768387472254,0.76243944,936.54,935.17,2.6562837]
[1768387472452,0.76243944,936.53,935.17,2.6562837]
[1768387472654,0.76243944,936.52,935.18,2.6562837]
[1768387472850,0.76243944,936.51,935.18,2.6562837]
[1768387473054,0.76243944,936.5,935.18,2.6562837]
[1768387473257,0.76243944,936.49,935.18,2.6562837]
[1768387473454,0.76243944,936.48,935.18,2.6562837]
[1768387473659,0.76243944,936.47,935.18,2.6562837]
[1768387473958,0.76243944,936.46,935.18,2.6562837]
[1768387474252,1.48,937.08,935.18,2.6562837]
[1768387474454,0.76244886,937.07,935.18,2.6562837]
[1768387474754,0.76244886,937.06,935.18,2.6562837]
[1768387474954,0.76244886,937.05,935.18,2.6562837]
[1768387475257,0.76244886,937.04,935.18,2.6562837]
[1768387475454,0.76244886,937.03,935.18,2.6562837]
[1768387475659,0.76244886,937.02,935.18,2.6562837]
[1768387475857,0.76244886,937.01,935.18,2.6562837]
[1768387476060,0.76244886,937.0,935.18,2.6562837]
[1768387476360,0.76244886,936.99,935.18,2.6562837]
[1768387476556,0.76244886,936.98,935.18,2.6562837]
[1768387476861,0.76244886,936.97,935.18,2.6562837]
[1768387477056,0.76244886,936.96,935.18,2.6562837]
[1768387477256,0.76244886,936.95,935.18,2.6562837]
[1768387477560,0.76244886,936.94,935.19,2.6562837]
[1768387477755,0.76244886,936.93,935.19,2.6562837]
[1768387477956,0.76244886,936.92,935.19,2.6562837]
[1768387478155,1.48,937.08,935.19,2.6562837]
[1768387478156,0.76244886,936.91,935.19,2.6562837]
[1768387478456,0.76244886,936.9,935.19,2.6562837]
[1768387478660,0.76244886,936.89,935.19,2.6562837]
[1768387478957,0.76244886,936.88,935.19,2.6562837]
[1768387479159,0.76244886,936.87,935.19,2.6562837]
[1768387479356,0.76244886,936.86,935.19,2.6562837]
[1768387479559,0.76244886,936.85,935.19,2.6562837]
[1768387479760,0.76244886,936.84,935.19,2.6562837]
[1768387479960,0.76244886,936.83,935.19,2.6562837]
[1768387480159,0.76244886,936.82,935.19,2.6562837]
[1768387480358,0.76244886,936.81,935.2,2.6562837]
[1768387480660,0.76244886,936.8,935.2,2.6562837]
[1768387480857,0.76244886,936.79,935.2,2.6562837]
[1768387481161,0.76244886,936.78,935.2,2.6562837]
[1768387481356,0.76244886,936.77,935.2,2.6562837]
[1768387481560,0.76244886,936.76,935.2,2.6562837]
[1768387481761,0.76244886,936.75,935.2,2.6562837]
[1768387481962,0.76244886,936.74,935.2,2.6562837]
[1768387482162,0.76244886,936.73,935.2,2.6562837]
[1768387482460,0.76244886,936.72,935.21,2.6562837]
[1768387482763,0.76244886,936.71,935.21,2.6562837]
[1768387482959,0.76244886,936.7,935.21,2.6562837]
[1768387483162,0.76244886,936.69,935.21,2.6562837]
[1768387483360,0.76244886,936.68,935.21,2.6562837]
[1768387483659,0.76244886,936.67,935.22,2.6562837]
[1768387483964,0.76244886,936.66,935.22,2.6562837]
[1768387484162,0.76244886,936.65,935.22,2.6562837]
[1768387484464,0.76244886,936.64,935.22,2.6562837]
[1768387484662,0.76244886,936.63,935.23,2.6562837]
[1768387484859,0.76244886,936.62,935.23,2.6562837]
[1768387485063,0.76244886,936.61,935.23,2.6562837]
[1768387485264,0.76244886,936.6,935.23,2.6562837]
[1768387485459,0.76244886,936.59,935.23,2.6562837]
[1768387485664,0.76244886,936.58,935.23,2.6562837]
[1768387485959,0.76244886,936.57,935.23,2.6562837]
[1768387486165,0.76244886,936.56,935.25,2.6562837]
[1768387486363,0.76244886,936.55,935.25,2.6562837]
[1768387486563,0.76244886,936.54,935.25,2.6562837]
[1768387486862,0.76244886,936.53,935.25,2.6562837]
[1768387487163,0.76244886,936.52,935.25,2.6562837]
[1768387487358,0.76244886,936.51,935.25,2.6562837]
[1768387487559,0.76244886,936.5,935.25,2.6562837]
[1768387487760,0.76244886,936.49,935.25,2.6562837]
[1768387487963,0.76244886,936.48,935.25,2.6562837]
[1768387488160,0.76244886,936.47,935.25,2.6562837]
[1768387488461,0.76244886,936.46,935.25,2.6562837]
[1768387488661,0.76244886,936.45,935.25,2.6562837]
[1768387488862,0.76244886,936.44,935.25,2.6562837]
[1768387489060,0.76244886,936.43,935.25,2.6562837]
[1768387489263,0.76244886,936.42,935.25,2.6562837]
[1768387489465,0.76244886,936.41,935.25,2.6562837]
[1768387489765,0.76244886,936.4,935.25,2.6562837]
[1768387489967,0.76244886,936.39,935.25,2.6562837]
[1768387490266,0.76244886,936.38,935.25,2.6562837]
[1768387490466,1.48,937.08,935.25,2.6562837]
[1768387490668,0.76388821,937.07,935.25,2.6562837]
[1768387490866,0.76388821,937.06,935.25,2.6562837]
[1768387491165,1.48,937.08,935.25,2.6562837]
[1768387491166,0.76388821,937.05,935.25,2.6562837]
[1768387491364,0.76388821,937.04,935.25,2.6562837]
[1768387491563,0.76388821,937.03,935.25,2.6562837]
[1768387491863,0.76388821,937.02,935.25,2.6562837]
[1768387492066,0.76388821,937.01,935.25,2.6562837]
[1768387492267,0.76388821,937.0,935.25,2.6562837]
[1768387492562,0.76388821,936.99,935.25,2.6562837]
[1768387492762,0.76388821,936.98,935.25,2.6562837]
[1768387492966,0.76388821,936.97,935.25,2.6562837]
[1768387493166,0.76388821,936.96,935.25,2.6562837]
[1768387493367,0.76388821,936.95,935.25,2.6562837]
[1768387493568,0.76388821,936.94,935.25,2.6562837]
[1768387493765,0.76388821,936.93,935.25,2.6562837]
[1768387493969,0.76388821,936.92,935.25,2.6562837]
[1768387494265,0.76388821,936.91,935.25,2.6562837]
[1768387494470,0.76388821,936.9,935.25,2.6562837]
[1768387494668,0.76388821,936.89,935.25,2.6562837]
[1768387494866,0.76388821,936.88,935.25,2.6562837]
[1768387495066,0.76388821,936.87,935.25,2.6562837]
[1768387495267,0.76388821,936.86,935.25,2.6562837]
[1768387495470,0.76388821,936.85,935.25,2.6562837]
[1768387495667,1.48,937.08,935.25,2.6562837]
[1768387495668,0.76388821,936.84,935.25,2.6562837]
[1768387495865,0.76388821,936.83,935.25,2.6562837]
[1768387496066,0.76388821,936.82,935.25,2.6562837]
[1768387496370,0.76388821,936.81,935.25,2.6562837]
[1768387496566,0.76388821,936.8,935.25,2.6562837]
[1768387496770,0.76388821,936.79,935.25,2.6562837]
[1768387496968,0.76388821,936.78,935.25,2.6562837]
[1768387497168,0.76388821,936.77,935.25,2.6562837]
[1768387497366,0.76388821,936.76,935.25,2.6562837]
[1768387497570,0.76388821,936.75,935.25,2.6562837]
[1768387497865,0.76388821,936.74,935.25,2.6562837]
[1768387498067,0.76388821,936.73,935.25,2.6562837]
[1768387498271,0.76388821,936.72,935.25,2.6562837]
[1768387498471,0.76388821,936.71,935.25,2.6562837]
[1768387498673,0.76388821,936.7,935.25,2.6562837]
[1768387498867,0.76388821,936.69,935.25,2.6562837]
[1768387499068,0.76388821,936.68,935.25,2.6562837]
[1768387499271,0.76388821,936.67,935.25,2.6562837]
[1768387499470,0.76388821,936.66,935.25,2.6562837]
[1768387499668,0.76388821,936.65,935.25,2.6562837]
[1768387499971,0.76388821,936.64,935.25,2.6562837]
[1768387500169,0.76388821,936.63,935.25,2.6562837]
[1768387500372,0.76388821,936.62,935.25,2.6562837]
[1768387500575,1.48,937.08,935.25,2.6562837]
[1768387500768,0.7638889,937.07,935.25,2.6562837]
[1768387500972,0.7638889,937.06,935.25,2.6562837]
[1768387501172,0.7638889,937.05,935.25,2.6562837]
[1768387501468,0.7638889,937.04,935.25,2.6562837]
[1768387501668,0.7638889,937.03,935.25,2.6562837]
[1768387501973,0.7638889,937.02,934.98,2.6562837]
[1768387502168,0.7638889,937.01,934.98,2.6562837]
[1768387502372,0.7638889,937.0,934.92,2.6562837]
[1768387502567,0.7638889,936.99,934.92,2.6562837]
[1768387502866,0.7638889,936.98,934.92,2.6562837]
[1768387503070,0.7638889,936.97,934.92,2.6562837]
[1768387503272,0.7638889,936.96,934.92,2.6562837]
[1768387503472,0.7638889,936.95,934.9,2.84208833]
[1768387503672,0.1858215,937.22,934.9,2.84208833]
[1768387503673,0.7638889,936.94,934.9,2.84208833]
[1768387503869,0.7638889,936.93,934.9,2.84208833]
[1768387504069,0.7638889,936.92,934.9,2.84208833]
[1768387504370,0.7638889,936.91,934.9,2.84208833]
[1768387504571,0.7638889,936.9,934.9,0.18580463]
[1768387504771,0.7638889,936.89,934.9,0.18580463]
[1768387504975,0.7638889,936.88,934.9,0.18580463]
[1768387505275,0.7638889,936.87,934.9,0.18580463]
[1768387505474,0.7638889,936.86,934.9,0.18580463]
[1768387505672,0.7638889,936.85,934.9,0.18580463]
[1768387505871,0.7638889,936.84,934.9,0.18580463]
[1768387506075,0.7638889,936.83,934.9,0.18580463]
[1768387506271,0.7638889,936.82,934.9,0.18580463]
[1768387506473,0.7638889,936.81,934.9,0.18580463]
[1768387506776,0.7638889,936.8,934.9,0.18580463]
[1768387506971,0.7638889,936.79,934.9,0.18580463]
[1768387507176,0.7638889,936.78,934.9,0.18580463]
[1768387507372,0.7638889,936.77,934.9,0.18580463]
[1768387507572,0.7638889,936.76,934.9,0.18580463]
[1768387507778,0.7638889,936.75,934.9,0.18580463]
[1768387507974,0.7638889,936.74,934.9,0.18580463]
[1768387508175,0.7638889,936.73,934.9,0.18580463]
[1768387508375,0.7638889,936.72,934.9,0.18580463]
[1768387508578,0.7638889,936.71,934.9,0.18580463]
[1768387508875,0.7638889,936.7,934.9,0.18580463]
[1768387509074,0.7638889,936.69,934.9,0.18580463]
[1768387509278,0.7638889,936.68,934.9,0.18580463]
[1768387509476,0.7638889,936.67,934.9,0.18580463]
[1768387509676,0.7638889,936.66,934.9,0.18580463]
[1768387509978,0.7638889,936.65,934.9,0.18580463]
[1768387510175,0.7638889,936.64,934.9,0.18580463]
[1768387510379,0.7638889,936.63,934.9,0.18580463]
[1768387510579,0.7638889,936.62,934.9,0.18580463]
[1768387510778,0.7638889,936.61,934.9,0.18580463]
[1768387510977,0.7638889,936.6,934.9,0.18580463]
[1768387511278,0.7638889,936.59,934.9,0.18580463]
[1768387511477,0.7638889,936.58,934.9,0.18580463]
[1768387511681,0.7638889,936.57,934.9,0.18580463]
[1768387511882,0.7638889,936.56,934.9,0.18580463]
[1768387512077,0.7638889,936.55,934.9,0.18580463]
[1768387512380,0.7638889,936.54,934.9,0.18580463]
[1768387512576,0.7638889,936.53,934.9,0.18580463]
[1768387512776,0.7638889,936.52,934.9,0.18580463]
[1768387512981,0.7638889,936.51,934.9,0.18580463]
[1768387513181,0.7638889,936.5,934.9,0.18580463]
[1768387513382,0.7638889,936.49,934.9,0.18580463]
[1768387513583,0.7638889,936.48,934.9,0.18580463]
[1768387513777,0.7638889,936.47,934.9,0.18580463]
[1768387513978,0.7638889,936.46,934.9,0.18580463]
[1768387514183,0.7638889,936.45,934.9,0.18580463]
[1768387514380,0.7638889,936.44,934.9,0.18580463]
[1768387514679,0.7638889,936.43,934.9,0.18580463]
[1768387514880,0.7638889,936.42,934.9,0.18580463]
[1768387515183,0.7638889,936.41,934.9,0.18580463]
[1768387515383,0.7638889,936.4,934.9,0.18580463]
[1768387515581,1.337,936.83,934.9,0.18580463]
[1768387515582,0.7638889,936.39,934.9,0.18580463]
[1768387515784,0.7638889,936.38,934.9,0.18580463]
[1768387515979,1.337,936.83,934.9,0.18580463]
[1768387515980,0.7638889,936.37,934.9,0.18580463]
[1768387516181,0.7638889,936.36,934.9,0.18580463]
[1768387516483,0.7638889,936.35,934.9,0.18580463]
[1768387516682,0.7638889,936.34,934.9,0.18580463]
[1768387516884,0.7638889,936.33,934.9,0.18580463]
[1768387517082,0.7638889,936.32,934.9,0.18580463]
[1768387517281,0.7638889,936.31,934.9,0.18580463]
[1768387517484,0.7638889,936.3,934.9,0.18580463]
[1768387517683,0.7638889,936.29,934.9,0.18580463]
[1768387517886,0.7638889,936.28,934.9,0.18580463]
[1768387518185,1.337,936.83,934.9,0.18580463]
[1768387518484,0.75972785,936.82,934.9,0.18580463]
[1768387518684,0.75972785,936.81,934.9,0.18580463]
[1768387518880,0.75972785,936.8,934.9,0.18580463]
[1768387519184,0.75972785,936.79,934.9,0.18580463]
[1768387519379,1.337,936.83,934.9,0.18580463]
[1768387519580,0.75969477,936.82,934.9,0.18580463]
[1768387519780,0.75969477,936.81,934.9,0.18580463]
[1768387519980,0.75969477,936.8,934.9,0.18580463]
[1768387520182,0.75969477,936.79,934.9,0.18580463]
[1768387520385,0.75969477,936.78,934.9,0.18580463]
[1768387520585,0.75969477,936.77,934.9,0.18580463]
[1768387520786,0.75966851,936.76,934.9,0.18580463]
[1768387521086,0.75966851,936.75,934.9,0.18580463]
[1768387521282,0.75966851,936.74,934.9,0.18580463]
[1768387521482,0.75966851,936.73,934.9,0.18580463]
[1768387521785,0.75966851,936.72,934.9,0.18580463]
[1768387522086,0.75966851,936.71,934.9,0.18580463]
[1768387522279,0.75966851,936.7,934.9,0.18580463]
[1768387522484,0.75966851,936.69,934.9,0.18580463]
[1768387522680,0.75966851,936.68,934.9,0.18580463]
[1768387522882,1.337,936.83,934.9,0.18580463]
[1768387522883,0.75966851,936.67,934.9,0.18580463]
[1768387523082,0.75966851,936.66,934.9,0.18580463]
[1768387523286,0.75966851,936.65,934.9,0.18580463]
[1768387523485,0.75966851,936.64,934.9,0.18580463]
[1768387523786,0.75966851,936.63,934.9,0.18580463]
[1768387523986,0.75966851,936.62,934.9,0.18580463]
[1768387524287,0.75966851,936.61,934.9,0.18580463]
[1768387524486,0.75966851,936.6,934.9,0.18580463]
[1768387524687,0.75966851,936.59,934.9,0.18580463]
[1768387524885,0.75966851,936.58,934.9,0.18580463]
[1768387525084,0.75966851,936.57,934.9,0.18580463]
[1768387525287,0.75966851,936.56,934.9,0.18580463]
[1768387525585,0.75966851,936.55,934.9,0.18580463]
[1768387525888,0.75966851,936.54,934.9,0.18580463]
[1768387526085,0.75966851,936.53,934.9,0.18580463]
[1768387526290,0.75966851,936.52,934.9,0.18580463]
[1768387526490,0.75966851,936.51,934.9,0.18580463]
[1768387526685,0.75966851,936.5,934.9,0.18580463]
[1768387526988,0.75966851,936.49,934.9,0.18580463]
[1768387527287,0.75966851,936.48,934.9,0.18580463]
[1768387527490,0.75966851,936.47,934.9,0.18580463]
[1768387527790,0.75966851,936.46,934.9,0.18580463]
[1768387527989,0.75966851,936.45,934.93,2.6562837]
[1768387528288,1.337,936.83,934.93,2.6562837]
[1768387528491,0.76001516,936.82,935.03,2.6562837]
[1768387528790,0.76001516,936.81,935.03,2.6562837]
[1768387528991,0.76001516,936.8,935.03,2.6562837]
[1768387529190,0.76001516,936.79,935.03,2.6562837]
[1768387529387,0.76001516,936.78,935.03,2.6562837]
[1768387529588,0.76001516,936.77,935.04,2.6562837]
[1768387529792,0.76001516,936.76,935.04,2.6562837]
[1768387529986,0.76001516,936.75,935.05,2.6562837]
[1768387530187,0.76001516,936.74,935.05,2.6562837]
[1768387530393,0.76001516,936.73,935.05,2.6562837]
[1768387530589,0.76001516,936.72,935.05,2.6562837]
[1768387530793,0.76001516,936.71,935.05,2.6562837]
[1768387531092,0.76001516,936.7,935.05,2.6562837]
[1768387531293,0.76001516,936.69,935.05,2.6562837]
[1768387531590,0.76001516,936.68,935.05,2.6562837]
[1768387531789,0.76001516,936.67,935.05,2.6562837]
[1768387532089,0.76001516,936.66,935.11,2.6562837]
[1768387532288,0.76001516,936.65,935.11,2.6562837]
[1768387532492,0.76001516,936.64,935.11,2.6562837]
[1768387532692,0.76001516,936.63,935.11,2.6562837]
[1768387532888,0.76001516,936.62,935.11,2.6562837]
[1768387533090,0.76001516,936.61,935.11,2.6562837]
[1768387533393,0.76001516,936.6,935.11,2.6562837]
[1768387533594,0.76001516,936.59,935.11,2.6562837]
[1768387533795,0.76001516,936.58,935.11,2.6562837]
[1768387534093,1.337,936.83,935.11,2.6562837]
[1768387534294,0.76119279,936.82,935.11,2.6562837]
[1768387534494,0.76119279,936.81,935.11,2.6562837]
[1768387534690,0.76119279,936.8,935.11,2.6562837]
[1768387534991,0.76119279,936.79,935.11,2.6562837]
[1768387535294,0.76119279,936.78,935.17,2.6562837]
[1768387535491,0.76119279,936.77,935.17,2.6562837]
[1768387535791,0.76119279,936.76,935.19,2.6562837]
[1768387535996,0.76119279,936.75,935.19,2.6562837]
[1768387536196,0.76119279,936.74,935.2,2.6562837]
[1768387536396,0.76119279,936.73,935.2,2.6562837]
[1768387536594,0.76119279,936.72,935.2,2.6562837]
[1768387536800,0.76119279,936.71,935.2,2.6562837]
[1768387537097,0.76119279,936.7,935.2,2.6562837]
[1768387537294,1.337,936.83,935.21,2.6562837]
[1768387537496,0.76096828,936.82,935.21,2.6562837]
[1768387537700,0.76096828,936.81,935.21,2.6562837]
[1768387537898,0.76096828,936.8,935.2,2.6562837]
[1768387538099,0.76096828,936.79,935.2,2.6562837]
[1768387538300,0.76096828,936.78,935.2,2.6562837]
[1768387538599,0.76096828,936.77,935.2,2.6562837]
[1768387538904,0.76096828,936.76,935.2,2.6562837]
[1768387539196,0.76096828,936.75,935.2,2.6562837]
[1768387539400,0.76096828,936.74,935.19,2.6562837]
[1768387539600,0.76096828,936.73,935.19,2.6562837]
[1768387539901,0.76096828,936.72,935.19,2.6562837]
[1768387540199,0.76096828,936.71,935.19,2.6562837]
[1768387540396,1.337,936.83,935.19,2.6562837]
[1768387540596,0.76064718,936.82,935.19,2.6562837]
[1768387540796,0.76064718,936.81,935.19,2.6562837]
[1768387541094,0.76064718,936.8,935.19,2.6562837]
[1768387541296,0.76064718,936.79,935.19,2.6562837]
[1768387541495,0.76064718,936.78,935.18,2.6562837]
[1768387541696,0.76064718,936.77,935.18,2.6562837]
[1768387541895,0.76064718,936.76,935.18,2.6562837]
[1768387542100,0.76064718,936.75,935.18,2.6562837]
[1768387542299,0.76064718,936.74,935.18,2.6562837]
[1768387542499,0.76064718,936.73,935.17,2.6562837]
[1768387542698,0.76064718,936.72,935.17,2.6562837]
[1768387542900,1.337,936.83,935.17,2.6562837]
[1768387543100,0.76045881,936.82,935.17,2.6562837]
[1768387543397,0.76045881,936.81,935.17,2.6562837]
[1768387543598,0.76045881,936.8,935.17,2.6562837]
[1768387543798,0.76045881,936.79,935.17,2.6562837]
[1768387543995,0.76045881,936.78,935.17,2.6562837]
[1768387544197,0.76045881,936.77,935.17,2.6562837]
[1768387544500,0.76045881,936.76,935.16,2.6562837]
[1768387544701,0.76045881,936.75,935.16,2.6562837]
[1768387544901,0.76045881,936.74,935.16,2.6562837]
[1768387545099,0.76045881,936.73,935.16,2.6562837]
[1768387545398,1.337,936.83,935.16,2.6562837]
[1768387545703,0.76020849,936.82,935.16,2.6562837]
[1768387545898,0.76020849,936.81,935.16,2.6562837]
[1768387546103,0.76020849,936.8,935.16,2.6562837]
[1768387546302,0.76020849,936.79,935.16,2.6562837]
[1768387546499,0.76020849,936.78,935.16,2.6562837]
[1768387546699,0.76020849,936.77,935.15,2.6562837]
[1768387546900,1.337,936.83,935.15,2.6562837]
[1768387547104,0.76012573,936.82,935.15,2.6562837]
[1768387547403,0.76012573,936.81,935.15,2.6562837]
[1768387547604,0.76012573,936.8,935.15,2.6562837]
[1768387547904,0.76012573,936.79,935.15,2.6562837]
[1768387548105,0.76012573,936.78,935.15,2.6562837]
[1768387548301,1.337,936.83,935.15,2.6562837]
[1768387548502,0.7600183,936.82,935.15,2.6562837]
[1768387548701,0.7600183,936.81,935.15,2.6562837]
[1768387548904,0.7600183,936.8,935.15,2.6562837]
[1768387549101,0.7600183,936.79,935.15,2.6562837]
[1768387549401,0.7600183,936.78,935.15,2.6562837]
[1768387549600,1.337,936.83,935.15,2.6562837]
[1768387549810,0.75997411,936.82,935.15,2.6562837]
[1768387550001,0.75997411,936.81,935.15,2.6562837]
[1768387550206,0.75997411,936.8,935.15,2.6562837]
[1768387550405,0.75997411,936.79,935.15,2.6562837]
[1768387550603,1.337,936.83,935.15,2.6562837]
[1768387550902,0.75994186,936.82,935.15,2.6562837]
[1768387551105,0.75994186,936.81,935.15,2.6562837]
[1768387551301,0.75994186,936.8,935.15,2.6562837]
[1768387551502,0.75994186,936.79,935.15,2.6562837]
[1768387551701,0.75994186,936.78,935.15,2.6562837]
[1768387551906,1.337,936.83,935.15,2.6562837]
[1768387552104,0.75992159,936.82,935.15,2.6562837]
[1768387552303,0.75992159,936.81,935.15,2.6562837]
[1768387552509,0.75992159,936.8,935.15,2.6562837]
[1768387552703,0.75992159,936.79,935.15,2.6562837]
[1768387552905,1.337,936.83,935.14,2.6562837]
[1768387553107,0.75991318,936.82,935.14,2.6562837]
[1768387553308,0.75991318,936.81,935.14,2.6562837]
[1768387553507,0.75991318,936.8,935.14,2.6562837]
[1768387553705,0.75991318,936.79,935.14,2.6562837]
[1768387553903,1.337,936.83,935.14,2.6562837]
[1768387554109,0.75991652,936.82,935.14,2.6562837]
[1768387554305,0.75991652,936.81,935.14,2.6562837]
[1768387554506,0.75991652,936.8,935.14,2.6562837]
[1768387554705,0.75991652,936.79,935.14,2.6562837]
[1768387554906,0.75991652,936.78,935.14,2.6562837]
[1768387555109,1.337,936.83,935.14,2.6562837]
[1768387555307,0.75993129,936.82,935.14,2.6562837]
[1768387555505,0.75993129,936.81,935.15,2.6562837]
[1768387555807,0.75993129,936.8,935.15,2.6562837]
[1768387556007,0.75993129,936.79,935.19,2.6562837]
[1768387556210,0.75993129,936.78,935.19,2.6562837]
[1768387556410,1.337,936.83,935.19,2.6562837]
[1768387556608,0.75999658,936.82,935.19,2.6562837]
[1768387556808,0.75999658,936.81,935.19,2.6562837]
[1768387557006,0.75999658,936.8,935.19,2.6562837]
[1768387557208,0.75999658,936.79,935.19,2.6562837]
[1768387557414,0.75999658,936.78,935.19,2.6562837]
[1768387557615,0.75999658,936.77,935.2,2.6562837]
[1768387557814,0.75999658,936.76,935.2,2.6562837]
[1768387558015,0.75999658,936.75,935.2,2.6562837]
[1768387558212,1.337,936.83,935.2,2.6562837]
[1768387558417,0.76011149,936.82,935.2,2.6562837]
[1768387558613,0.76011149,936.81,935.2,2.6562837]
[1768387558819,0.76011149,936.8,935.2,2.6562837]
[1768387559018,0.76011149,936.79,935.2,2.6562837]
[1768387559220,0.76011149,936.78,935.2,2.6562837]
[1768387559518,0.76011149,936.77,935.2,2.6562837]
[1768387559718,0.76011149,936.76,935.2,2.6562837]
[1768387559916,0.76011149,936.75,935.2,2.6562837]
[1768387560120,0.76011149,936.74,935.2,2.6562837]
[1768387560320,1.337,936.83,935.2,2.6562837]
[1768387560620,0.76026728,936.82,935.21,2.6562837]
[1768387560818,0.76026728,936.81,935.21,2.6562837]
[1768387561022,0.76026728,936.8,935.21,2.6562837]
[1768387561217,0.76026728,936.79,935.22,2.6562837]
[1768387561419,0.76026728,936.78,935.22,2.6562837]
[1768387561618,0.76026728,936.77,935.22,2.6562837]
[1768387561820,0.76026728,936.76,935.22,2.6562837]
[1768387562017,0.76026728,936.75,935.22,2.6562837]
[1768387562318,0.75976118,936.74,935.22,2.6562837]
[1768387562523,0.18579868,937.34,935.22,2.6562837]
[1768387562723,0.75980293,937.33,935.23,2.6562837]
[1768387563019,0.75980293,937.32,935.23,2.6562837]
[1768387563220,0.75980293,937.31,935.23,2.6562837]
[1768387563522,0.75980293,937.3,935.23,2.6562837]
[1768387563722,0.75980293,937.29,935.24,2.6562837]
[1768387563922,0.75980293,937.28,935.24,2.6562837]
[1768387564120,0.75980293,937.27,935.24,2.6562837]
[1768387564317,0.75980293,937.26,935.24,2.6562837]
[1768387564522,0.75980293,937.25,935.24,2.6562837]
[1768387564719,0.75980293,937.24,935.24,2.6562837]
[1768387564920,0.75980293,937.23,935.25,2.6562837]
[1768387565122,0.75980293,937.22,935.25,2.6562837]
[1768387565323,0.75980293,937.21,935.25,2.6562837]
[1768387565524,0.75980293,937.2,935.25,2.6562837]
[1768387565825,0.75980293,937.19,935.18,2.6562837]
[1768387566024,0.75980293,937.18,935.18,2.6562837]
[1768387566223,0.75980293,937.17,935.18,2.6562837]
[1768387566423,0.75980293,937.16,935.17,2.6562837]
[1768387566623,0.75980293,937.15,935.17,2.6562837]
[1768387566921,0.75980293,937.14,935.18,2.6562837]
[1768387567124,0.75980293,937.13,935.18,2.6562837]
[1768387567320,0.75980293,937.12,935.18,2.6562837]
[1768387567624,0.75980293,937.11,935.19,2.6562837]
[1768387567821,0.75980293,937.1,935.19,2.6562837]
[1768387568024,0.75980293,937.09,935.19,2.6562837]
[1768387568222,0.75980293,937.08,935.2,0.1857724]
[1768387568425,0.75980293,937.07,935.2,0.1857724]
[1768387568723,0.75980293,937.06,935.2,0.1857724]
[1768387568921,0.75980293,937.05,935.2,0.1857724]
[1768387569222,0.75980293,937.04,935.2,0.1857724]
[1768387569422,0.75980293,937.03,935.2,0.1857724]
[1768387569622,0.75980293,937.02,935.2,0.1857724]
[1768387569820,0.75980293,937.01,935.2,0.1857724]
[1768387570026,0.75980293,937.0,935.2,0.1857724]
[1768387570222,1.516,937.21,935.2,0.1857724]